Cogmind - Beta 16 @@@ ROGUE MODE // 2026.01.10 @ 18:30:16 Player: Rocket Result: Destroyed by L-31 Rogue with Katana Performance ------------- Evolutions (1) 500 Regions Visited (4) 800 Robots Destroyed (52) 260 Value Destroyed (1549) 1549 Prototype IDs (3) 60 Alien Tech Used (0) 0 Bonus (789) 789 TOTAL SCORE: 3958 Bonus ------- Follower Combat Kills 89 Entered Garrisons 200 Used RIF Installer 500 Cogmind --------- Core Integrity 0/400 Matter 211/300 Energy 280/280 System Corruption 4% Temperature Cool (0) Movement Rolling (125) Ox3 Location -9/Garrison Parts ------- > --- POWER (1) -------- Heavy Ion Engine > --- PROPULSION (2) --- Wheel > --- UTILITY (4) ------ Cooling System Large Storage Unit Machine Analyzer Targeting Computer > --- WEAPON (2) ------- Light Assault Rifle Light Cannon > --- INVENTORY (15) --- Ion Engine Light Ion Engine Large Matter Pod (150) Terrain Scan Processor Light Armor Plating Relay Coupler [Grunt] (28) Relay Coupler [Grunt] (22) Field Recycling Unit (0) Small Laser Light Cannon Peak State ------------ > --- POWER ------------ Heavy Ion Engine > --- PROPULSION ------- Light Treads Improved Treads > --- UTILITY ---------- Cooling System Large Storage Unit Machine Analyzer Light Armor Plating > --- WEAPON ----------- Improved Assault Rifle Light Cannon > --- INVENTORY -------- Ion Engine Ion Engine Light Ion Engine Light Treads Light Treads Wheel Armored Wheel Large Matter Pod Terrain Scan Processor Light Armor Plating Light Armor Plating Field Recycling Unit Improved Medium Laser Light Cannon Grenade Launcher [Rating: 19] Favorites ----------- Power Heavy Ion Engine Engine Heavy Ion Engine Propulsion Light Treads Treads Light Treads Wheel Wheel Utility Large Storage Unit Device Cooling System Storage Large Storage Unit Processor Machine Analyzer Protection Light Armor Plating Weapon Light Cannon Energy Gun Improved Medium Laser Ballistic Gun Light Assault Rifle Ballistic Cannon Light Cannon Launcher Grenade Launcher Build | -11 -10 -9 -9 -9 ------- Run | Yrd Mat Mat Sto Gar Slots Evolved 2 | . . 2 . . Power . | . . . . . Propulsion . | . . . . . Utility 2 | . . 2 . . Weapon . | . . . . . Parts Attached 40 | 5 5 8 13 9 Power 5 | 1 . 3 1 . Engine 5 | 1 . 3 1 . Core . | . . . . . Reactor . | . . . . . Propulsion 10 | 2 1 . 3 4 Treads 9 | 2 1 . 3 3 Leg . | . . . . . Wheel 1 | . . . . 1 Hover . | . . . . . Flight . | . . . . . Utility 11 | 1 1 5 3 1 Device 3 | . . 3 . . Storage 2 | 1 1 . . . Processor 4 | . . 2 1 1 Hackware . | . . . . . Protection 2 | . . . 2 . Artifact . | . . . . . Weapon 14 | 1 3 . 6 4 Energy Gun 3 | . . . 2 1 Energy Cannon . | . . . . . Ballistic Gun 5 | 1 1 . 2 1 Ballistic Cannon 5 | . 2 . 2 1 Launcher 1 | . . . . 1 Special Weapon . | . . . . . Impact Weapon . | . . . . . Slashing Weapon . | . . . . . Piercing Weapon . | . . . . . Special Melee Weapon . | . . . . . Unidentified Prototypes 3 | . . . 3 . Corrupted Parts 1 | . . . . 1 System Corruption 2 | . . . . 2 Parts Lost 5 | . . . . 5 Power . | . . . . . Propulsion 2 | . . . . 2 Utility 1 | . . . . 1 Weapon 2 | . . . . 2 Highest Loss Streak 3 | . . . . 3 To Critical Strikes 1 | . . . . 1 Average Backups 11 | . 4 12 14 13 Power 1 | . . 1 3 2 Propulsion 2 | . . 2 3 2 Utility 2 | . . 1 2 5 Weapon 4 | . 3 7 5 3 Tool/Special . | . . . . . Unused Backups 14 | . . 1 4 9 Power . | . . . . . Propulsion 2 | . . . 1 1 Utility 8 | . . 1 . 7 Weapon 4 | . . . 3 1 Tool/Special . | . . . . . Average Slot Usage (%) 94 | . 82 89 100 98 Engine 11 | . 14 11 11 11 Treads 22 | . 28 21 22 21 Device 11 | . . 19 12 11 Storage 11 | . 14 11 11 11 Processor 10 | . . 3 13 17 Protection 3 | . . . 7 3 Energy Gun 1 | . . . 1 3 Ballistic Gun 2 | . 9 . 1 3 Ballistic Cannon 17 | . 16 22 19 13 Peak Build Rating 19 | 5 6 13 19 19 Average Rating 13 | 4 5 10 16 17 On Entrance 8 | . 5 6 13 17 Avg Prop Armor Cover (%) . | . . . . . Naked Turns . | . . . . . Heaviest Build 41 | 9 29 36 41 39 Greatest Support 43 | 40 40 40 43 43 Greatest Overweight (x) 1 | . . . 1 . Average Overweight (x) . | . . . . . Largest Inventory Capacity 15 | 8 15 15 15 15 Average Capacity 14 | 6 14 15 15 15 Most Carried 15 | . 9 15 15 15 Average Carried 12 | . 4 12 14 13 Final Capacity 15 | 8 15 15 15 15 Final Carried 15 | . 9 15 15 10 Class Distribution -------------------- 77% | Mutant 14% | Commander-Mutant 8% | Scavenger-Mutant Dominant Class ---------------- Mutant | -10/Materials Mutant | -9/Materials Mutant | -9/Storage Mutant | -9/Garrison Resources | -11 -10 -9 -9 -9 ----------- Run | Yrd Mat Mat Sto Gar Matter Collected 1826 | 183 123 411 670 439 Remotely . | . . . . . Salvage Created 1341 | . 114 341 476 410 Parts 107 | . 18 25 47 17 Haulers Intercepted 3 | . 1 . 2 . Recyclers Shooed 1 | . . 1 . . Parts Field Recycled . | . . . . . Retrieved Matter . | . . . . . Parts Self-Destructed . | . . . . . Prevented . | . . . . . Parts Restored . | . . . . . Kills | -11 -10 -9 -9 -9 ------- Run | Yrd Mat Mat Sto Gar Combat Hostiles Destroyed 39 | . 6 9 11 13 Guns 9 | . 1 . 5 3 Cannons 25 | . 5 9 6 5 AOE 5 | . . . . 5 Classes Destroyed 11 | . 4 4 1 2 Worker 2 | . 1 . 1 . Builder 2 | . . 1 1 . Hauler 3 | . 1 . 2 . Mechanic 1 | . . . 1 . Operator 2 | . 1 1 . . Watcher 3 | . . 1 2 . Swarmer 11 | . 6 . 4 1 Grunt 20 | . . 7 5 8 Duelist 1 | . . . . 1 Sentry 5 | . . 2 2 1 Hunter 2 | . . . . 2 Best Kill Streak 6 | . 6 3 6 4 Combat Bots Only 5 | . 3 2 5 4 Max Kills in Single Turn 3 | . 1 1 1 3 Gunslinging . | . . . . . Exploded 3 | . . . . 3 Melee . | . . . . . Uniques/NPCs Destroyed . | . . . . . Combat | -11 -10 -9 -9 -9 -------- Run | Yrd Mat Mat Sto Gar Hostile Shots Fired 186 | . 31 23 49 83 Missed 61 | . 15 4 21 21 Hits 125 | . 16 19 28 62 Melee 19 | . . . . 19 Projectile 106 | . 16 19 28 43 Critical Strikes 7 | . . . 1 6 Damage Taken 2071 | . 135 240 400 1296 Core 434 | . 19 50 59 306 Absorbed by Shields . | . . . . . Regen/Repaired (Parts) 70 | . . 42 28 . Core Remaining (%) 96 | 100 92 . . . Volleys Fired 149 | . 17 28 48 56 Largest 2 | . 2 2 2 2 Hottest 86 | . 60 60 76 86 Shots Fired 283 | . 29 56 96 102 Gun 64 | . 5 . 27 32 Cannon 213 | . 24 56 69 64 Launcher 6 | . . . . 6 Special . | . . . . . Kinetic 249 | . 29 56 82 82 Thermal 28 | . . . 14 14 Explosive 6 | . . . . 6 Electromagnetic . | . . . . . Robot Hit Streak 11 | . 5 6 10 11 Robot Miss Streak 5 | . 4 2 2 5 Penetration Max . | . . . . . Secondary Targets 1 | . . . 1 . Max Gunslinging Chain 1 | . . . 1 . Shots Hit Robots 158 | . 14 30 57 57 Core Hits 67 | . 8 13 21 25 Critical Kills . | . . . . . Critical Parts Destroyed . | . . . . . Critical Strikes 10 | . 2 6 2 . Burn 1 | . . . 1 . Blast 9 | . 2 6 1 . Melee Attacks . | . . . . . Impact . | . . . . . Slashing . | . . . . . Piercing . | . . . . . Sneak Attacks . | . . . . . Combat Hostiles . | . . . . . Follow-up Attacks . | . . . . . Damage Inflicted 2838 | . 231 596 935 1076 Guns 546 | . 10 . 256 280 Cannons 1934 | . 221 596 679 438 Explosions 358 | . . . . 358 Melee . | . . . . . Ramming . | . . . . . Kinetic 2164 | . 231 596 806 531 Thermal 316 | . . . 129 187 Explosive 358 | . . . . 358 Electromagnetic . | . . . . . Impact . | . . . . . Slashing . | . . . . . Piercing . | . . . . . Highest Corruption 4 | . . 1 2 4 Average Corruption 1 | . . 1 1 3 Corruption Purged . | . . . . . Corruption Blocked . | . . . . . Effects 37 | . . 3 15 19 Message Errors 12 | . . 1 3 8 Matter Fused 14 | . . 1 6 7 Heat Flow Errors 1 | . . 1 . . Energy Discharges 1 | . . . 1 . Data Loss (minor) 4 | . . . 1 3 Data Loss (major) 3 | . . . 2 1 Misfires 1 | . . . 1 . Weapon Failures 1 | . . . 1 . Overload Shots . | . . . . . Overflow Damage 11 | . . . 8 3 Projectiles 8 | . . . 8 . Explosions 3 | . . . . 3 Melee . | . . . . . Knockbacks 13 | . 2 2 6 3 Impact . | . . . . . Kinetic 13 | . 2 2 6 3 Secondary . | . . . . . Self-Inflicted Damage 4 | . . . . 4 Shots 1 | . . . . 1 Rammed . | . . . . . Targets Rammed . | . . . . . Kicked . | . . . . . Crushed . | . . . . . Highest Temperature 68 | . . 68 . 3 Average Temperature 24 | . . 31 . 3 Received Heat Transfer 336 | . . 111 111 114 Siege Activations . | . . . . . Martial Activations . | . . . . . Shielding Activations . | . . . . . Robots Disrupted . | . . . . . Combat Hostiles . | . . . . . Robots Corrupted . | . . . . . Combat Hostiles . | . . . . . Parts Fried . | . . . . . Impact Corruptions . | . . . . . Robots Melted . | . . . . . Combat Hostiles . | . . . . . Parts Melted . | . . . . . Heat Transferred 767 | . . . 360 407 Parts Sabotaged . | . . . . . Parts Stolen . | . . . . . Parts Stripped . | . . . . . Power Chain Reactions . | . . . . . Alert | -11 -10 -9 -9 -9 ------- Run | Yrd Mat Mat Sto Gar Maximum Alert Level 1 | . . . . 1 Low Security (%) 78 | 100 100 100 100 16 Level 1 21 | . . . . 83 Level 2 . | . . . . . Level 3 . | . . . . . Level 4 . | . . . . . Level 5 . | . . . . . High Security . | . . . . . Max Security . | . . . . . Peak Influence 347 | . 87 101 112 347 Initial 42 | . . 32 11 42 Average 84 | . 17 34 30 247 Influence Increases 1406 | . 192 269 450 495 Destroy 0b10 Robot/C 900 | . 120 180 280 320 Destroy 0b10 Robot/NC 65 | . 15 15 35 . Destroy Leader 132 | . 12 42 58 20 Allied During Kill 110 | . . . 54 56 Successful Hack 22 | . . 2 6 14 Disable Machine 60 | . 15 30 15 . Anti-Garrison Action 50 | . . . . 50 Destroy Structure 37 | . . . 2 35 Lose Combat Pursuer 30 | . 30 . . . Influence Decreases 1059 | . 114 318 413 214 Entered New Map 88 | . . 46 18 24 Time Decay 677 | . 114 272 291 . Lost Part 50 | . . . . 50 Lost Ally 200 | . . . 60 140 Purge Threat 44 | . . . 44 . Squads Dispatched 8 | . 1 2 5 . Investigation 3 | . . 2 1 . Extermination . | . . . . . Reinforcement 4 | . 1 . 3 . Assault . | . . . . . Garrison 1 | . . . 1 . Intercept . | . . . . . Searches Triggered . | . . . . . Construction Impeded . | . . . . . Haulers Reinforced . | . . . . . Active Scanning Responses . | . . . . . Cargo Convoy Interrupts . | . . . . . Stealth | -11 -10 -9 -9 -9 --------- Run | Yrd Mat Mat Sto Gar Distress Signals 2 | . 1 . 1 . Communications Jammed . | . . . . . Distress Signals . | . . . . . Times Spotted 64 | . 12 10 25 17 Peak Tracking Total 6 | . 4 2 5 6 Tactical Retreats 1 | . 1 . . . Traps | -11 -10 -9 -9 -9 ------- Run | Yrd Mat Mat Sto Gar Traps Triggered 2 | . . . 1 1 Indirectly . | . . . . . Trap Hack Attempts . | . . . . . Triggered . | . . . . . Disarmed . | . . . . . Reprogrammed . | . . . . . Reused . | . . . . . Traps Extracted . | . . . . . Installed . | . . . . . Triggered . | . . . . . Machines | -11 -10 -9 -9 -9 ---------- Run | Yrd Mat Mat Sto Gar Machines Disabled 5 | . 1 2 1 1 Max in Single Turn 1 | . 1 1 1 1 Garrison Relay 1 | . . . . 1 Machines Repaired . | . . . . . Machines Dismantled . | . . . . . Machines Sabotaged . | . . . . . Overloaded Fab Kills . | . . . . . Hacking | -11 -10 -9 -9 -9 --------- Run | Yrd Mat Mat Sto Gar Machines Accessed 12 | . . 4 6 2 Terminals 8 | . . 2 4 2 Fabricators . | . . . . . Repair Stations 2 | . . 1 1 . Recycling Units . | . . . . . Scanalyzers 1 | . . 1 . . Garrison Access 1 | . . . 1 . Total Hacks 26 | . . 10 13 3 Successful 10 | . . 3 6 1 Failed 15 | . . 6 7 2 Catastrophic 5 | . . 1 3 1 Database Lockouts 1 | . . 1 . . Manual 5 | . . 5 . . Terminals 16 | . . 4 9 3 Fabricators . | . . . . . Repair Stations 6 | . . 3 3 . Recycling Units . | . . . . . Scanalyzers 3 | . . 3 . . Garrison Access 1 | . . . 1 . Terminal Hacks 4 | . . . 3 1 Open Door 1 | . . . 1 . Emergency Access Points 1 | . . . . 1 Alert Level 1 | . . . 1 . Unreport Threat 1 | . . . 1 . Fabricator Hacks . | . . . . . Repair Station Hacks 4 | . . 2 2 . Scan Component 2 | . . 1 1 . Repair 2 | . . 1 1 . Recycling Unit Hacks . | . . . . . Scanalyzer 1 | . . 1 . . Retrieve Study 1 | . . 1 . . Garrison Access Hacks 1 | . . . 1 . Unlock Access 1 | . . . 1 . Unauthorized Hacks . | . . . . . Terminals . | . . . . . Fabricators . | . . . . . Repair Stations . | . . . . . Recycling Units . | . . . . . Scanalyzers . | . . . . . Garrison Access . | . . . . . Data Cores Recovered 1 | . . 1 . . Used 1 | . . 1 . . Hacking Detections 7 | . . 3 3 1 Full Trace Events 3 | . . 2 1 . Feedback Events 1 | . . 1 . . Corruption 1 | . . 1 . . Feedback Blocked . | . . . . . Robot Schematics Acquired . | . . . . . Robots Built . | . . . . . Authchips . | . . . . . Time . | . . . . . Total Robot Build Rating . | . . . . . Part Schematics Acquired . | . . . . . Parts Built . | . . . . . Authchips . | . . . . . Time . | . . . . . Total Part Build Rating . | . . . . . Part Studies Acquired 1 | . . 1 . . Parts Repaired 2 | . . 1 1 . Time 58 | . . 26 32 . Parts Recycled . | . . . . . Recycled Matter . | . . . . . Retrieved Matter . | . . . . . Retrieved Components . | . . . . . Parts Scanalyzed . | . . . . . Part Schematics Acquired . | . . . . . Parts Damaged . | . . . . . Bothacking | -11 -10 -9 -9 -9 ------------ Run | Yrd Mat Mat Sto Gar Used RIF Installer 1 | . . . . 1 Robots Hacked . | . . . . . Non-combat . | . . . . . Combat . | . . . . . Robot Hacks Applied . | . . . . . Relay Couplers Released 3 | . . . . 3 Machine Destruction 3 | . . . . 3 Fabnet Peak Effective % . | . . . . . Robots Rewired . | . . . . . Allies Hacked . | . . . . . Hacks Repelled . | . . . . . Allies | -11 -10 -9 -9 -9 -------- Run | Yrd Mat Mat Sto Gar Total Allies 10 | . . . 10 . Largest Group 10 | . . . 10 7 Highest-Rated Group 88 | . . . 88 64 Highest-Rated Ally 16 | . . . 16 16 Total Orders . | . . . . . Ally Attacks 52 | . . . 29 23 Total Damage 434 | . . . 241 193 Kills 6 | . . . 3 3 Allies Corrupted . | . . . . . Allies Melted . | . . . . . Intel | -11 -10 -9 -9 -9 ------- Run | Yrd Mat Mat Sto Gar Active Infowar (turns) 2526 | . . 478 1187 861 Optics 230 | . . 230 . . Structural 632 | . . 478 154 . Machine Analysis 1894 | . . . 1033 861 Robot Analysis Total . | . . . . . Derelict Logs Recovered . | . . . . . Drone Launches . | . . . . . Drone Recoveries . | . . . . . Exploration | -11 -10 -9 -9 -9 ------------- Run | Yrd Mat Mat Sto Gar Turns Passed 3363 | 74 475 766 1187 861 Spaces Moved 1658 | 46 258 392 563 399 Core 5 | 5 . . . . Treads 1653 | 41 258 392 563 399 Legs . | . . . . . Wheels . | . . . . . Hover . | . . . . . Flight . | . . . . . Fastest Speed 50 | 50 160 160 160 160 Average Speed 163 | 148 160 160 171 160 Slowest Speed 200 | 160 160 160 200 160 Overloaded Moves . | . . . . . Propulsion Burnouts . | . . . . . Robots Hopped . | . . . . . Potential Cave-ins . | . . . . . Cave-ins Triggered . | . . . . . Exploration Rate (%) 35 | 4 42 26 61 42 Regions Visited 4 Branch Regions 1 Pre-discovered Areas . | . . . . . Known Exits Taken 1 | . . . 1 . Unknown Exits Taken 3 | 1 1 1 . . Scrap Searched . | . . . . . Spaces Dug . | . . . . . Terrain Destroyed 10 | . . . . 10 Melee . | . . . . . Projectile . | . . . . . AOE 10 | . . . . 10 Terrain Rammed . | . . . . . Walls Destroyed . | . . . . . Machines Disabled . | . . . . . Actions | -11 -10 -9 -9 -9 --------- Run | Yrd Mat Mat Sto Gar Total 2027 | 50 290 471 695 521 Wait 130 | . 2 38 48 42 Move 1654 | 45 257 391 562 399 Hop . | . . . . . Pick Up 26 | . 8 4 9 5 Fast Attach 12 | 5 2 4 . 1 Attach 8 | . . . . 8 Detach . | . . . . . Swap 30 | . 3 5 15 7 Drop 18 | . 1 1 13 3 Fire 149 | . 17 28 48 56 Melee . | . . . . . Ram . | . . . . . Kick . | . . . . . Crush . | . . . . . Escape Stasis . | . . . . . Rewire . | . . . . . Trap . | . . . . . Miscellaneous . | . . . . . Route ------- -11/Scrapyard -10/Materials (discovered 2 exits: *Mat / [*Min]) -9/Materials -9/Storage -9/Garrison (discovered 1 exit: [*Mat]) History --------- Turn | Location | Event 15 | -11/Scrapyard | Discovered new exit (range 14) 75 | -11/Scrapyard | Entered Materials 230 | -10/Materials | Discovered new exit (range 6) 313 | -10/Materials | Build established: Mutant 386 | -10/Materials | Discovered new exit (range 8) 550 | -10/Materials | Entered another Materials area 550 | -9/Materials | Evolved 2 slots: Utility x2 563 | -9/Materials | Central database locked down 982 | -9/Materials | Repaired Lgt. Treads+ 1062 | -9/Materials | Discovered new exit (range 11) 1316 | -9/Materials | Entered Storage 1815 | -9/Storage | Repaired Field Recycling Unit 2063 | -9/Storage | Met 01-MTF 2234 | -9/Storage | Assisted by bots powering up and referring to "LRC-V3" 2449 | -9/Storage | Garrison activated, responded to threat 2481 | -9/Storage | Identified exit to Garrison 2503 | -9/Storage | Entered Garrison 2503 | -9/Garrison | Accompanied by 8 allies (01-MTF) 2506 | -9/Garrison | 01-MTF left 2539 | -9/Garrison | Triggered checkpoint 2540 | -9/Garrison | Build established: Commander-Mutant 2569 | -9/Garrison | Garrison Relay disabled 2754 | -9/Garrison | Lost 3 allies 2793 | -9/Garrison | Lost 3 allies 2824 | -9/Garrison | Lost 3 parts (1n1u1w) 2925 | -9/Garrison | Triggered checkpoint 2960 | -9/Garrison | Triggered checkpoint 3007 | -9/Garrison | Triggered checkpoint 3021 | -9/Garrison | Triggered checkpoint 3028 | -9/Garrison | Core integrity fell below 50% 3051 | -9/Garrison | Build established: Mutant 3186 | -9/Garrison | Discovered new exit (range 9) 3239 | -9/Garrison | Installed Relay Interface Framework 3325 | -9/Garrison | Triggered checkpoint 3346 | -9/Garrison | Core integrity fell below 20% 3364 | -9/Garrison | Destroyed by L-31 Rogue with Katana Last Messages --------------- 03239_ Relay Interface Framework installed. 03259_ MEGT0:XV|N5EXQTMWDLKDSN 03269_ Y-45 Defender destroyed. 03277_ System corrupted: Matter fused (-7). 03277_ Acquired 10 matter. 03285_ Acquired Beam Rifle. 03321_ System corrupted: Matter fused (-8). 03325_ Beams of light sweep through the air. An alarm sounds. 03331_ Lgt. Treads+ severed. 03336_ C>